bitfinex/quotes_SOLUSD_20240624
["timestamp","ask_amount","ask_price","bid_price","bid_amount"]
[1719243054232,6.5377,128.17,128.1,31.1]
[1719243057456,6.1287,128.15,128.1,31.1]
[1719243060033,1.1287,128.15,128.1,31.1]
[1719243060746,0.5165169,128.11,128.1,31.1]
[1719243060933,0.5165169,128.11,128.01,19.87928585]
[1719243061137,0.5165169,128.11,128.02,20.0]
[1719243061749,0.5165169,128.11,128.02,3.123791]
[1719243062049,0.5165169,128.11,127.99,31.1]
[1719243062234,0.34,128.1,127.99,31.1]
[1719243063035,6.3634,128.09,127.99,31.1]
[1719243063549,6.3634,128.09,128.0,0.34]
[1719243063855,6.3634,128.09,127.99,31.1]
[1719243064451,6.3634,128.09,128.0,20.0]
[1719243065247,6.3634,128.09,128.01,0.17]
[1719243065556,6.3634,128.09,128.01,0.34]
[1719243065750,6.3634,128.09,128.01,0.17]
[1719243066055,6.3634,128.09,128.0,20.0]
[1719243066353,0.17,128.08,127.99,31.1]
[1719243066544,0.34,128.08,127.99,31.1]
[1719243066955,6.4472,128.07,127.99,31.1]
[1719243067270,0.17,128.06,127.99,31.1]
[1719243067447,6.4472,128.05,127.99,31.1]
[1719243072260,0.17,128.04,127.99,31.1]
[1719243072566,0.34,128.04,127.99,31.1]
[1719243072750,6.4472,128.05,127.99,31.1]
[1719243073741,0.34,128.04,127.99,31.1]
[1719243075071,6.4472,128.05,127.99,31.1]
[1719243076368,0.17,128.04,127.99,31.1]
[1719243076570,0.34,128.04,127.99,31.1]
[1719243076944,0.17,128.04,127.99,31.1]
[1719243077140,6.4472,128.05,127.99,31.1]
[1719243077868,6.4472,128.05,128.0,0.17]
[1719243078051,6.4472,128.05,127.99,31.1]
[1719243080767,0.5165169,128.0,127.99,31.1]
[1719243084368,0.5165169,128.0,127.92,10.0]
[1719243084671,0.5165169,128.0,127.93,20.17]
[1719243085261,0.5165169,128.0,127.91,15.5496]
[1719243086775,0.5165169,128.0,127.92,0.34]
[1719243087268,0.5165169,128.0,127.92,20.34]
[1719243087474,0.5165169,128.0,127.92,74.9569]
[1719243087652,0.5165169,128.0,127.92,86.6827]
[1719243088053,0.5165169,128.0,127.92,67.14]
[1719243088469,0.5165169,128.0,127.93,54.6167]
[1719243088672,0.5165169,128.0,127.94,74.9559]
[1719243088968,0.5165169,128.0,127.97,16.6299]
[1719243089169,0.5165169,128.0,127.98,20.34]
[1719243089469,1e-08,128.0,127.98,20.34]
[1719243090058,1e-08,128.0,127.98,0.34]
[1719243090464,1e-08,128.0,127.98,20.34]
[1719243091457,1e-08,128.0,127.98,0.34]
[1719243091652,1e-08,128.0,127.97,20.0]
[1719243091870,1e-08,128.0,127.95,20.0]
[1719243092956,1e-08,128.0,127.93,6.5483]
[1719243093157,1e-08,128.0,127.94,20.0]
[1719243093354,1e-08,128.0,127.92,20.0]
[1719243094477,1e-08,128.0,127.9,31.15]
[1719243094677,1e-08,128.0,127.91,20.0]
[1719243096471,6.3722,127.99,127.91,20.0]
[1719243097462,6.3722,127.99,127.9,31.15]
[1719243099467,6.0083,127.97,127.9,31.15]
[1719243099672,0.34,127.96,127.83,31.272432]
[1719243099985,0.34,127.96,127.84,20.0]
[1719243100472,0.34,127.96,127.83,20.0]
[1719243100982,6.0083,127.97,127.83,66.8]
[1719243100983,1e-08,127.84,127.83,66.8]
[1719243101965,6.0083,127.97,127.87,7.8202]
[1719243102172,6.0083,127.97,127.88,67.14]
[1719243102485,6.0083,127.97,127.89,23.1939]
[1719243102685,6.0083,127.97,127.9,20.34]
[1719243102874,6.2247,128.04,127.9,20.34]
[1719243103288,6.2247,128.04,127.93,7.8165]
[1719243103491,6.2247,128.04,127.94,21.06577034]
[1719243103875,6.2247,128.04,127.94,28.88177034]
[1719243104083,6.2247,128.04,127.95,46.8]
[1719243104288,6.5349,128.1,127.96,28.88713155]
[1719243104502,6.5349,128.1,127.96,28.1545]
[1719243104669,6.5349,128.1,127.96,20.34]
[1719243105085,6.5349,128.1,127.97,46.8]
[1719243105389,6.5349,128.1,127.98,20.34]
[1719243106092,6.5349,128.1,127.98,0.34]
[1719243106298,6.5349,128.1,127.97,0.34]
[1719243106786,0.17,128.09,127.97,0.34]
[1719243107184,0.34,128.09,127.97,0.34]
[1719243107513,6.2816,128.08,127.97,0.17]
[1719243107674,0.34,128.07,127.93,20.0]
[1719243108374,6.2915,128.06,127.93,20.0]
[1719243108600,0.17,128.05,127.93,20.0]
[1719243108774,0.34,128.05,127.93,20.0]
[1719243109205,0.34,128.05,127.92,31.15]
[1719243110999,6.1194,128.04,127.92,31.15]
[1719243111184,0.34,128.03,127.92,31.15]
[1719243112405,31.1,128.03,127.92,31.15]
[1719243113922,6.1629,128.02,127.92,31.15]
[1719243114133,0.17,128.01,127.92,31.15]
[1719243114298,6.024,128.0,127.92,31.15]
[1719243114500,0.34,127.99,127.92,31.15]
[1719243115226,6.024,128.0,127.92,31.15]
[1719243116515,6.024,128.0,127.93,0.17]
[1719243117627,6.024,128.0,127.93,0.34]
[1719243119721,6.024,128.0,127.92,31.15]
[1719243120813,0.78173859,127.93,127.92,31.15]
[1719243121517,0.78173859,127.93,127.85,15.3045]
[1719243121730,0.78173859,127.93,127.86,20.0]
[1719243121904,0.78173859,127.93,127.85,15.3045]
[1719243122296,6.3078,127.92,127.83,8.0782901]
[1719243122521,6.3078,127.92,127.82,6.1017383]
[1719243122897,6.3078,127.92,127.81,404.1403]
[1719243123107,6.3078,127.92,127.81,388.3]
[1719243123302,6.3078,127.92,127.82,20.0]
[1719243124112,6.3078,127.92,127.82,27.8233]
[1719243124517,6.3078,127.92,127.82,20.0]
[1719243124726,6.3078,127.92,127.84,7.8221]
[1719243125023,0.78173859,127.93,127.84,7.8221]
[1719243125024,0.78173859,127.93,127.85,20.0]
[1719243125209,0.78173859,127.93,127.86,8.161]
[1719243125416,0.78173859,127.93,127.87,27.8202]
[1719243125720,0.78173859,127.93,127.88,0.34]
[1719243127708,0.78173859,127.93,127.89,0.17]
[1719243127909,0.78173859,127.93,127.87,0.34]
[1719243128904,0.78173859,127.93,127.87,47.14]
[1719243129131,0.78173859,127.93,127.88,27.8193]
[1719243129318,0.78173859,127.93,127.89,66.6876]
[1719243129518,0.78173859,127.93,127.9,20.0]
[1719243129714,0.78173859,127.93,127.91,0.17]
[1719243129924,0.78173859,127.93,127.91,0.34]
[1719243130514,6.0585,128.0,127.92,7.8173]
[1719243130811,6.6501,128.04,127.93,73.2044]
[1719243131137,6.6501,128.04,127.95,19.5386]
[1719243131357,6.6501,128.04,127.96,20.34]
[1719243132919,6.6501,128.04,127.97,20.0]
[1719243133118,6.6501,128.04,127.98,0.17]
[1719243133325,6.6501,128.04,127.96,0.34]
[1719243133732,6.6501,128.04,127.97,0.17]
[1719243133916,6.6501,128.04,127.95,0.34]
[1719243135565,6.6501,128.04,127.95,8.1553]
[1719243135852,6.6501,128.04,127.96,27.8149]
[1719243136052,54.88433577,128.15,127.98,7.8136]
[1719243136053,6.6102,128.11,127.98,7.8136]
[1719243136365,6.6102,128.11,127.99,20.34]
[1719243137023,6.6102,128.11,127.99,0.34]
[1719243137721,6.6102,128.11,127.99,8.153]
[1719243138024,6.6102,128.11,128.0,20.0]
[1719243138223,6.6102,128.11,128.01,0.34]
[1719243138621,6.6102,128.11,128.01,0.17]
[1719243138920,6.6102,128.11,128.0,0.34]
[1719243139451,6.6102,128.11,128.0,66.6712]
[1719243139625,6.6102,128.11,128.02,7.8112]
[1719243139827,6.6102,128.11,128.03,20.34]
[1719243140330,6.6102,128.11,128.03,0.34]
[1719243140732,0.78106694,128.04,128.03,0.34]
[1719243141647,0.78106694,128.04,128.03,0.17]
[1719243142262,0.78106694,128.04,128.03,20.17]
[1719243142462,0.78106694,128.04,128.03,20.34]
[1719243143069,0.78106694,128.04,128.03,0.34]
[1719243144476,0.78106694,128.04,128.03,54.9506]
[1719243144653,6.2435,128.2,128.04,66.3244]
[1719243144853,6.2435,128.2,128.05,74.9492]
[1719243146061,6.2435,128.2,128.06,7.8087]
[1719243146371,6.2435,128.2,128.08,7.8074]
[1719243146584,6.2435,128.2,128.09,20.34]
[1719243146793,6.2435,128.2,128.09,28.1469]
[1719243146952,6.2435,128.2,128.09,20.34]
[1719243147285,6.2435,128.2,128.09,67.14]
[1719243148352,6.2435,128.2,128.09,74.9465]
[1719243148552,6.2435,128.2,128.09,74.9468]
[1719243149861,6.2435,128.2,128.09,66.8]
[1719243150062,6.2435,128.2,128.09,20.0]
[1719243150265,6.2435,128.2,128.09,74.1237]
[1719243150576,6.2435,128.2,128.1,20.0]
[1719243150870,6.2435,128.2,128.08,20.0]
[1719243151251,6.027,128.18,128.06,20.0]
[1719243151554,5.527,128.18,128.07,7.8079]
[1719243152168,5.527,128.18,128.05,418.54787678]
[1719243152354,5.527,128.18,128.06,7.9787]
[1719243152550,5.527,128.18,128.07,0.17]
[1719243152975,5.527,128.18,128.07,20.17]
[1719243153270,5.527,128.18,128.08,0.17]
[1719243153657,5.527,128.18,128.09,7.8069]
[1719243153864,5.527,128.18,128.1,20.34]
[1719243154663,5.527,128.18,128.1,0.34]
[1719243156360,5.527,128.18,128.09,0.34]
[1719243156868,5.527,128.18,128.06,20.0]
[1719243158378,0.17,128.17,128.06,20.0]
[1719243158672,0.17,128.17,128.07,0.17]
[1719243159056,6.3727,128.16,128.06,20.0]
[1719243159270,6.3727,128.16,128.03,40.0]
[1719243159663,0.17,128.15,128.03,20.0]
[1719243159973,6.2273,128.15,128.03,26.3727]
[1719243160175,6.2273,128.13,128.03,26.3727]
[1719243160374,6.2273,128.13,128.03,20.0]
[1719243160765,0.78106694,128.04,128.03,20.0]
[1719243161478,0.78106694,128.04,128.03,20.17]
[1719243161660,0.78106694,128.04,128.03,20.34]
[1719243161861,0.78106694,128.04,128.02,31.2]
[1719243164260,0.78106694,128.04,128.03,0.17]
[1719243164464,0.78106694,128.04,128.03,0.34]
[1719243164971,0.78106694,128.04,128.02,31.2]
[1719243165169,0.78106694,128.04,128.03,0.34]
[1719243165368,0.78106694,128.04,128.03,20.34]
[1719243168581,0.78106694,128.04,128.02,31.2]
[1719243170894,6.3727,128.03,127.92,0.08117529]
[1719243171101,6.3727,128.03,127.92,7.8172]
[1719243171398,6.3727,128.03,127.91,100.23252066]
[1719243171596,6.3727,128.03,127.91,61.16023266]
[1719243171897,6.3727,128.03,127.91,14.36023266]
[1719243172491,6.3727,128.03,127.91,61.16023266]
[1719243172800,6.3727,128.03,127.92,20.0]
[1719243173106,6.3727,128.03,127.92,37.8173]
[1719243173791,6.3727,128.03,127.93,1.89735418]
[1719243173983,6.3727,128.03,127.93,8.1567]
[1719243174191,6.3727,128.03,127.94,20.0]
[1719243174401,6.3727,128.03,127.95,0.34]
[1719243175190,6.3727,128.03,127.95,54.9553]
[1719243175392,6.3727,128.03,127.96,20.0]
[1719243175580,6.3727,128.03,127.97,0.34]
[1719243176102,0.78106694,128.04,127.97,54.9543]
[1719243176306,0.78106694,128.04,127.98,27.8136]
[1719243176598,0.78106694,128.04,127.99,0.34]
[1719243178597,0.78106694,128.04,127.98,0.34]
[1719243178989,0.78106694,128.04,128.0,7.812]
[1719243179189,0.78106694,128.04,128.01,86.6695]
[1719243179415,0.78106694,128.04,128.02,20.17]
[1719243179711,0.78106694,128.04,128.03,0.17]
[1719243180705,0.78106694,128.04,128.03,74.7806]
[1719243180904,6.3441,128.13,128.03,74.7806]
[1719243180905,6.3441,128.13,128.05,54.609]
[1719243181112,6.3441,128.13,128.06,27.8087]
[1719243181310,6.3441,128.13,128.06,20.0]
[1719243182002,6.3441,128.13,128.06,27.8087]
[1719243183015,6.3441,128.13,128.07,0.17]
[1719243183218,6.3441,128.13,128.07,0.34]
[1719243184218,30.76,128.23,128.07,0.34]
[1719243184219,6.1698,128.2,128.08,7.8072]
[1719243184515,6.1698,128.2,128.09,67.14]
[1719243184706,6.1698,128.2,128.09,20.34]
[1719243184906,6.1698,128.2,128.09,0.34]
[1719243185307,6.1698,128.2,128.09,0.17]
[1719243186825,6.1698,128.2,128.08,20.34]
[1719243187708,6.1698,128.2,128.08,86.6584]
[1719243188332,6.1698,128.2,128.09,54.6068]
[1719243188529,6.1698,128.2,128.1,20.34]
[1719243188904,6.1698,128.2,128.1,20.0]
[1719243189105,0.17,128.19,128.06,20.0]
[1719243189597,0.17,128.19,128.06,74.6087]
[1719243189825,0.17,128.19,128.07,7.8082]
[1719243190018,6.1698,128.2,128.08,20.0]
[1719243190215,6.1698,128.2,128.09,0.34]
[1719243190704,6.1698,128.2,128.1,7.8062]
[1719243190905,6.1698,128.2,128.11,20.34]
[1719243191102,6.1698,128.2,128.12,0.17]
[1719243191816,6.1698,128.2,128.11,0.34]
[1719243192216,6.1698,128.2,128.12,0.17]
[1719243192419,6.1698,128.2,128.1,20.34]
[1719243193229,0.17,128.19,128.07,20.0]
[1719243193407,0.17,128.19,128.06,20.0]
[1719243193408,0.34,128.19,128.06,20.0]
[1719243193727,0.17,128.19,128.06,27.8084]
[1719243193924,6.1698,128.2,128.08,7.8072]
[1719243194105,6.1698,128.2,128.09,20.0]
[1719243194309,6.1698,128.2,128.1,0.17]
[1719243194503,6.1698,128.2,128.1,0.34]
[1719243195935,6.1698,128.2,128.1,8.1461]
[1719243196125,6.1698,128.2,128.11,20.0]
[1719243196437,6.1698,128.2,128.1,0.34]
[1719243196438,6.1698,128.2,128.12,0.34]
[1719243196637,6.1698,128.2,128.13,0.17]
[1719243196814,6.1698,128.2,128.12,0.17]
[1719243198839,6.1698,128.2,128.1,0.17]
[1719243199042,6.1698,128.2,128.07,20.0]
[1719243199732,0.17,128.19,128.07,20.0]
[1719243199927,6.0207,128.18,128.07,20.0]
[1719243200133,0.34,128.17,128.06,20.0]
[1719243200328,6.2906,128.16,128.04,20.0]
[1719243200735,0.78100594,128.05,128.03,20.0]
[1719243200941,0.78100594,128.05,128.03,27.8103]
[1719243201350,0.78100594,128.05,128.04,74.3051]
[1719243201563,0.78100594,128.05,128.04,94.1351]
[1719243202033,7.2537,128.16,128.05,66.3221]
[1719243202228,7.2537,128.16,128.07,19.52]
[1719243202433,7.2537,128.16,128.08,20.0]
[1719243202839,7.2537,128.16,128.09,0.34]
[1719243203044,7.2537,128.16,128.08,0.34]
[1719243203236,7.2537,128.16,128.07,20.0]
[1719243203441,7.2537,128.16,128.04,388.3]
[1719243203734,7.2537,128.16,128.04,396.11]
[1719243204554,7.2537,128.16,128.05,0.34]
[1719243204755,7.2537,128.16,128.05,20.34]
[1719243205345,7.2537,128.16,128.05,28.1493]
[1719243205945,7.2537,128.16,128.05,74.9493]
[1719243206149,7.2537,128.16,128.06,46.8]
[1719243206350,7.2537,128.16,128.07,74.9477]
[1719243206940,7.2537,128.16,128.07,67.14]
[1719243207148,7.2537,128.16,128.07,20.34]
[1719243207347,7.2537,128.16,128.07,67.14]
[1719243208440,7.3358,128.19,128.08,81.7712]
[1719243208640,7.3358,128.19,128.09,20.34]
[1719243209159,7.3358,128.19,128.09,28.1469]
[1719243209461,7.3358,128.19,128.09,20.34]
[1719243212451,7.3358,128.19,128.09,28.1468]
[1719243212652,7.3358,128.19,128.09,20.34]
[1719243213164,7.3358,128.19,128.09,74.9469]
[1719243213557,7.3358,128.19,128.09,67.14]
[1719243213855,7.3358,128.19,128.09,74.9468]
[1719243214368,7.3358,128.19,128.11,7.8055]
[1719243214553,7.3358,128.19,128.12,20.34]
[1719243215056,7.3358,128.19,128.12,74.9451]
[1719243215251,7.3358,128.19,128.12,67.14]
[1719243215568,7.3358,128.19,128.12,20.34]
[1719243217750,7.3358,128.19,128.14,0.17]
[1719243220753,0.78039645,128.15,128.13,20.17]
[1719243220948,0.78039645,128.15,128.14,0.17]
[1719243221353,0.9631,128.22,128.16,7.8026]
[1719243221648,0.9631,128.22,128.17,20.34]
[1719243221854,6.1569,128.23,128.17,28.142]
[1719243222248,6.1569,128.23,128.17,20.34]
[1719243222874,6.1569,128.23,128.17,67.14]
[1719243223079,0.9631,128.26,128.17,67.14]
[1719243223251,0.9631,128.26,128.17,86.645]
[1719243223566,0.9631,128.26,128.19,54.6005]
[1719243223772,0.9631,128.26,128.2,20.34]
[1719243224552,6.1636,128.27,128.2,74.9402]
[1719243224859,6.1636,128.27,128.2,74.9403]
[1719243225553,6.1322,128.3,128.23,7.7984]
[1719243225754,6.1322,128.3,128.24,20.34]
[1719243226875,6.1322,128.3,128.24,67.14]
[1719243228455,0.9631,128.32,128.24,74.9377]
[1719243228655,0.9631,128.32,128.25,54.5972]
[1719243228955,0.9631,128.32,128.26,20.34]
[1719243230754,0.9631,128.32,128.26,0.34]
[1719243230974,0.9631,128.32,128.25,0.34]
[1719243231654,0.9631,128.32,128.22,20.0]
[1719243232168,0.9631,128.32,128.22,26.25555451]
[1719243233279,0.9631,128.32,128.23,0.17]
[1719243233477,0.9631,128.32,128.23,0.34]
[1719243237871,0.9631,128.32,128.23,54.9379]
[1719243238077,0.9631,128.32,128.24,20.0]
[1719243238390,0.9631,128.32,128.25,0.34]
[1719243239967,0.9631,128.32,128.24,0.34]
[1719243240585,0.9631,128.32,128.24,54.9376]
[1719243240782,0.9631,128.32,128.25,20.0]
[1719243241001,0.9631,128.32,128.26,0.34]
[1719243241487,0.9631,128.32,128.22,0.08098537]
[1719243241692,6.0935,128.31,128.22,0.08098537]
[1719243241859,6.0935,128.31,128.21,31.05]
[1719243243090,6.0935,128.31,128.22,20.0]
[1719243243380,0.9631,128.3,128.21,31.05]
[1719243243579,6.3727,128.29,128.21,31.05]
[1719243243783,30.76,128.36,128.21,31.05]
[1719243243784,6.3727,128.27,128.21,31.05]
[1719243245473,0.9631,128.26,128.21,31.05]
[1719243246921,0.9631,128.26,128.22,0.17]
[1719243247394,0.9631,128.26,128.21,31.05]
[1719243248489,0.9631,128.26,128.22,0.17]
[1719243249392,0.9631,128.26,128.21,31.05]
[1719243250488,0.9631,128.26,128.17,6.3727]
[1719243251187,0.9631,128.26,128.15,388.3]
[1719243251368,0.9631,128.26,128.16,37.8022]
[1719243251791,0.9631,128.26,128.16,96.3067]
[1719243252006,0.9631,128.26,128.18,7.8009]
[1719243252175,0.9631,128.26,128.19,0.34]
[1719243252496,0.9631,128.26,128.19,20.34]
[1719243253100,0.9631,128.26,128.19,0.34]
[1719243253393,0.9631,128.26,128.2,0.17]
[1719243253607,0.9631,128.26,128.18,0.34]
[1719243255191,0.9631,128.26,128.17,20.0]
[1719243256181,6.0006,128.25,128.17,20.0]
[1719243256387,6.0006,128.25,128.16,20.0]
[1719243257181,6.0006,128.25,128.17,0.34]
[1719243258079,6.0006,128.25,128.17,0.17]
[1719243259296,6.0006,128.25,128.17,0.34]
[1719243259882,0.9631,128.24,128.13,31.13104225]
[1719243260078,26.3,128.23,128.13,31.13104225]
[1719243260279,6.3055,128.22,128.14,20.0]
[1719243260891,0.78039645,128.15,128.14,27.8038]
[1719243261575,0.78039645,128.15,128.14,28.1438]
[1719243261981,0.78039645,128.15,128.14,94.4537]
[1719243262397,0.78039645,128.15,128.14,86.6499]
[1719243263299,0.78039645,128.15,128.14,20.34]
[1719243264481,0.78039645,128.15,128.14,74.9439]
[1719243265310,0.78039645,128.15,128.14,67.14]
[1719243265512,0.78039645,128.15,128.14,81.3544]
[1719243265683,0.9631,128.24,128.16,66.3062]
[1719243266002,0.9631,128.24,128.17,20.34]
[1719243266793,0.9631,128.24,128.17,0.34]
[1719243268113,6.3727,128.23,128.17,0.34]
[1719243269684,29.6184762,128.32,128.13,31.05]
[1719243269685,6.0475,128.21,128.13,31.05]
[1719243269878,1.7432,128.2,128.13,31.05]
[1719243270083,1.7432,128.2,128.05,25.49237349]
[1719243270084,1.7432,128.18,128.08,29.618476]
[1719243270288,6.3727,128.17,128.04,388.3]
[1719243270587,6.3727,128.17,128.04,418.99]
[1719243270780,6.3727,128.17,128.05,7.8089]
[1719243270981,6.3727,128.17,128.04,473.5999]
[1719243271189,6.3727,128.17,128.04,472.5999]
[1719243271803,6.2488,128.15,128.04,417.99]
[1719243272201,6.2488,128.15,128.05,20.0]
[1719243272904,1.7432,128.14,128.06,6.2488]
[1719243273087,6.0207,128.13,128.05,20.0]
[1719243273286,6.0207,128.13,128.03,20.0]
[1719243273490,6.0207,128.13,128.03,6.2488]
[1719243273690,1.7432,128.12,128.03,6.2488]
[1719243274201,6.1506,128.11,128.03,6.2488]
[1719243274398,6.1506,128.11,127.99,387.3]
[1719243274600,6.1506,128.11,128.0,6.1506]
[1719243275389,6.1506,128.11,128.01,20.0]
[1719243275602,6.1506,128.11,128.02,0.34]
[1719243279886,1.7432,128.1,128.02,0.34]
[1719243280891,0.78112795,128.03,128.02,0.34]
[1719243282012,0.78112795,128.03,128.02,8.1512]
[1719243282211,0.78112795,128.03,128.02,28.1512]
[1719243282607,1.7432,128.1,128.03,27.3368]
[1719243282786,1.7432,128.1,128.04,20.34]
[1719243283408,1.7432,128.1,128.05,20.0]
[1719243283606,1.7432,128.1,128.04,0.34]
[1719243284809,1.7432,128.1,128.05,0.17]
[1719243285003,1.7432,128.1,128.03,20.34]
[1719243286014,1.7432,128.1,128.04,20.0]
[1719243286223,1.7432,128.1,128.05,0.34]
[1719243286396,1.7432,128.1,128.06,0.17]
[1719243286597,1.7432,128.1,128.05,0.17]
[1719243286797,1.7432,128.1,128.04,20.17]
[1719243287105,1.7432,128.1,128.05,0.17]
[1719243287816,1.7432,128.1,128.04,0.34]
[1719243288226,1.7432,128.1,128.05,0.17]
[1719243288433,1.7432,128.1,128.03,0.34]
[1719243289908,1.7432,128.1,128.04,0.17]
[1719243290219,1.7432,128.1,128.02,0.34]
[1719243291002,1.7432,128.1,128.02,8.1512]
[1719243291205,1.7432,128.1,128.03,27.8102]
[1719243291405,1.7432,128.1,128.04,20.34]
[1719243291609,1.7432,128.1,128.05,0.17]
[1719243292413,1.7432,128.1,128.04,0.34]
[1719243295805,1.7432,128.1,128.05,0.34]
[1719243296005,1.7432,128.1,128.03,20.34]
[1719243296722,1.7432,128.1,128.03,0.34]
[1719243297230,1.7432,128.1,128.01,20.0]
[1719243297408,6.3727,128.09,128.0,6.1506]
[1719243297608,6.3727,128.09,128.01,20.0]
[1719243297806,6.3727,128.09,128.0,6.1506]
[1719243298701,6.3727,128.09,128.01,0.34]
[1719243299313,6.3727,128.09,128.0,6.1506]
[1719243299514,28.0932,128.08,128.0,6.1506]
[1719243299716,6.1003,128.07,128.0,6.1506]
[1719243300111,1.7432,128.06,127.95,643.5]
[1719243300313,1.7432,128.06,127.94,16.0082]
[1719243300516,1.7432,128.06,127.94,42.5282]
[1719243301030,0.78161639,127.95,127.94,42.5282]
[1719243301230,0.78161639,127.95,127.94,26.52]
[1719243301441,0.78161639,127.95,127.91,7.88773708]
[1719243301745,0.78161639,127.95,127.92,6.2323]
[1719243302718,0.78161639,127.95,127.89,434.1]
[1719243303028,0.78161639,127.95,127.94,7.8161]
[1719243303233,0.78161639,127.95,127.93,27.3579]
[1719243303435,0.78161639,127.95,127.93,19.5414]
[1719243303618,0.78161639,127.95,127.91,6.2323]
[1719243303817,0.78161639,127.95,127.92,0.17]
[1719243304124,0.78161639,127.95,127.91,6.2323]
[1719243304346,0.78161639,127.95,127.88,35.49901345]
[1719243304347,6.85651639,127.95,127.88,35.49901345]
[1719243305234,1.7432,127.94,127.88,31.15]
[1719243307313,26.35,127.93,127.88,31.15]
[1719243308126,1.7432,127.94,127.88,31.15]
[1719243316827,0.78161639,127.95,127.89,20.17]
[1719243317039,0.78161639,127.95,127.9,0.17]
[1719243318271,0.78161639,127.95,127.89,20.17]
[1719243318441,0.78161639,127.95,127.88,31.15]
[1719243320856,0.78161639,127.89,127.88,31.15]
[1719243321177,0.78161639,127.89,127.88,31.49]
[1719243321466,0.78161639,127.89,127.88,51.49]
[1719243324278,0.78161639,127.89,127.88,31.15]
[1719243327467,0.78161639,127.89,127.88,51.49]
[1719243330263,0.78161639,127.89,127.88,31.15]
[1719243336448,0.78161639,127.89,127.88,51.49]
[1719243338866,0.78161639,127.89,127.88,31.15]
[1719243342176,0.78161639,127.89,127.88,31.49]
[1719243342354,0.78161639,127.89,127.88,51.49]
[1719243345195,0.78161639,127.89,127.88,31.15]
[1719243345358,0.78161639,127.89,127.83,8.14657276]
[1719243345560,0.78161639,127.89,127.82,15.7415]
[1719243345758,0.78161639,127.89,127.83,20.0]
[1719243346061,0.78161639,127.89,127.82,21.9387]
[1719243346872,0.78161639,127.89,127.83,0.17]
[1719243347072,0.78161639,127.89,127.83,0.34]
[1719243347471,0.78161639,127.89,127.83,28.1623]
[1719243347679,0.78161639,127.89,127.83,20.34]
[1719243347873,0.78161639,127.89,127.83,67.28]
[1719243348177,0.78161639,127.89,127.86,7.8205]
[1719243348359,0.78161639,127.89,127.87,20.34]
[1719243348867,0.78161639,127.89,127.87,0.34]
[1719243349071,0.78161639,127.89,127.86,0.34]
[1719243349280,0.78161639,127.89,127.88,0.17]
[1719243349466,0.78161639,127.89,127.87,0.17]
[1719243349671,0.78161639,127.89,127.86,0.17]
[1719243349879,0.78161639,127.89,127.85,0.34]
[1719243350163,0.78161639,127.89,127.86,0.17]
[1719243350367,0.78161639,127.89,127.84,0.34]
[1719243351762,0.78161639,127.89,127.84,8.1621]
[1719243351999,0.78161639,127.89,127.85,20.0]
[1719243352180,0.78161639,127.89,127.86,0.34]